fUSD/lending_fUSD_20250623
["ID","MTS","AMOUNT","RATE_DAILY","PERIOD"]
[367201269,1750698692554,-667.69,0.00024363,2]
[367201270,1750698692564,-646.96,0.00024363,2]
[367201271,1750698692573,-587.11,0.00024363,2]
[367201272,1750698692583,-563.63,0.00024363,2]
[367201273,1750698692593,-639.66,0.00024363,2]
[367201274,1750698692604,-727.63,0.00024363,2]
[367201275,1750698692614,-688.37,0.00024363,2]
[367201276,1750698692624,-679.62,0.00024363,2]
[367201277,1750698692633,-1392.01,0.00024363,2]
[367201278,1750698692643,-1071.03,0.00024363,2]
[367201279,1750698692653,-655.34,0.00024363,2]
[367201280,1750698692662,-490.0,0.00024363,2]
[367201281,1750698692672,-490.0,0.00024363,2]
[367201282,1750698692682,-406.82,0.00024363,2]
[367201283,1750698692692,-490.0,0.00024363,2]
[367201284,1750698692702,-490.0,0.00024363,2]
[367201285,1750698692712,-608.99,0.00024363,2]
[367201286,1750698692721,-490.0,0.00024363,2]
[367201287,1750698692731,-1379.66,0.00024363,2]
[367201288,1750698692741,-669.98,0.00024363,2]
[367201289,1750698692751,-611.24,0.00024363,2]
[367201290,1750698692761,-651.34,0.00024363,2]
[367201291,1750698692770,-1147.78,0.00024363,2]
[367201292,1750698692780,-490.0,0.00024363,2]
[367201293,1750698692790,-490.0,0.00024363,2]
[367201294,1750698692800,-848.13,0.00024363,2]
[367201295,1750698692810,-490.0,0.00024363,2]
[367201296,1750698692819,-490.11,0.00024363,2]
[367201297,1750698692829,-491.56,0.00024363,2]
[367201298,1750698692838,-535.75,0.00024363,2]
[367201299,1750698692850,-1005.59,0.00024363,2]
[367201300,1750698692860,-710.24,0.00024363,2]
[367201301,1750698692869,-490.0,0.00024363,2]
[367201302,1750698692878,-1093.69,0.00024363,2]
[367201303,1750698692888,-490.0,0.00024363,2]
[367201304,1750698692898,-495.46,0.00024363,2]
[367201305,1750698692907,-1026.37,0.00024363,2]
[367201306,1750698692916,-1042.94,0.00024363,2]
[367201307,1750698692926,-490.0,0.00024363,2]
[367201308,1750698692935,-680.85,0.00024363,2]
[367201309,1750698692944,-999.16,0.00024363,2]
[367201310,1750698692953,-667.22,0.00024363,2]
[367201311,1750698692963,-693.98,0.00024363,2]
[367201312,1750698692973,-1158.24,0.00024363,2]
[367201313,1750698692982,-490.0,0.00024363,2]
[367201314,1750698692992,-1114.67,0.00024363,2]
[367201315,1750698693001,-796.17,0.00024363,2]
[367201316,1750698693011,-256.19670689,0.00024363,2]
[367201317,1750698693021,-908.82,0.00024363,2]
[367201318,1750698693031,-588.97,0.00024363,2]
[367201319,1750698693041,-917.59,0.00024363,2]
[367201320,1750698693050,-821.03,0.00024363,2]
[367201321,1750698693060,-1290.1,0.00024363,2]
[367201322,1750698693070,-490.0,0.00024363,2]
[367201323,1750698693080,-490.0,0.00024363,2]
[367201324,1750698693096,-795.86,0.00024363,2]
[367201325,1750698693105,-577.68,0.00024363,2]
[367201326,1750698693115,-1286.37,0.00024363,2]
[367201327,1750698693125,-891.33,0.00024363,2]
[367201328,1750698693136,-490.0,0.00024363,2]
[367201329,1750698693145,-547.12,0.00024363,2]
[367201330,1750698693155,-915.13,0.00024363,2]
[367201331,1750698693165,-607.15,0.00024363,2]
[367201332,1750698693175,-490.0,0.00024363,2]
[367201333,1750698693186,-490.0,0.00024363,2]
[367201334,1750698693196,-519.94,0.00024363,2]
[367201335,1750698693206,-827.87,0.00024363,2]
[367201336,1750698693216,-490.0,0.00024363,2]
[367201337,1750698693225,-490.0,0.00024363,2]
[367201338,1750698693235,-490.0,0.00024363,2]
[367201339,1750698693245,-528.13,0.00024363,2]
[367201340,1750698693255,-735.18,0.00024363,2]
[367201341,1750698693265,-490.0,0.00024363,2]
[367201342,1750698693275,-503.9,0.00024363,2]
[367201343,1750698693285,-868.27,0.00024363,2]
[367201344,1750698693295,-577.29,0.00024363,2]
[367201345,1750698693305,-490.0,0.00024363,2]
[367201346,1750698693315,-490.0,0.00024363,2]
[367201347,1750698693325,-490.0,0.00024363,2]
[367201348,1750698693335,-532.41,0.00024363,2]
[367201349,1750698693427,-713.81,0.00024363,2]
[367201350,1750698693437,-490.0,0.00024363,2]
[367201351,1750698693446,-639.62,0.00024363,2]
[367201352,1750698693456,-490.0,0.00024363,2]
[367201353,1750698693466,-490.0,0.00024363,2]
[367201354,1750698693475,-503.62,0.00024363,2]
[367201355,1750698693485,-1449.54,0.00024363,2]
[367201356,1750698693495,-490.0,0.00024363,2]
[367201357,1750698693504,-2103.74,0.00024363,2]
[367201358,1750698693513,-1502.01,0.00024363,2]
[367201359,1750698693523,-490.0,0.00024363,2]
[367201360,1750698693533,-490.0,0.00024363,2]
[367201361,1750698693542,-490.0,0.00024363,2]
[367201362,1750698693552,-1281.35,0.00024363,2]
[367201363,1750698693562,-490.0,0.00024363,2]
[367201364,1750698693571,-490.0,0.00024363,2]
[367201365,1750698693581,-1013.96,0.00024363,2]
[367201366,1750698693591,-978.16,0.00024363,2]
[367201367,1750698693602,-706.03,0.00024363,2]
[367201368,1750698693612,-490.0,0.00024363,2]
[367201369,1750698693621,-490.0,0.00024363,2]
[367201370,1750698693631,-490.0,0.00024363,2]
[367201371,1750698693642,-490.0,0.00024363,2]
[367201372,1750698693652,-490.0,0.00024363,2]
[367201373,1750698693663,-851.97,0.00024363,2]
[367201374,1750698693673,-490.0,0.00024363,2]
[367201375,1750698693684,-490.0,0.00024363,2]
[367201376,1750698693694,-968.94,0.00024363,2]
[367201377,1750698693703,-490.0,0.00024363,2]
[367201378,1750698693713,-1305.56,0.00024363,2]
[367201379,1750698693722,-605.32,0.00024363,2]
[367201380,1750698693731,-1523.12,0.00024363,2]
[367201381,1750698693741,-496.3,0.00024363,2]
[367201382,1750698693750,-596.62,0.00024363,2]
[367201383,1750698693760,-490.0,0.00024363,2]
[367201384,1750698693770,-490.0,0.00024363,2]
[367201385,1750698693779,-490.0,0.00024363,2]
[367201386,1750698693790,-1231.23,0.00024363,2]
[367201387,1750698693800,-640.93,0.00024363,2]
[367201388,1750698693809,-1091.48,0.00024363,2]
[367201389,1750698693819,-736.66,0.00024363,2]
[367201390,1750698693829,-1000.0,0.00024363,2]
[367201391,1750698693839,-490.0,0.00024363,2]
[367201392,1750698693851,-1296.4,0.00024363,2]
[367201393,1750698693861,-490.0,0.00024363,2]
[367201394,1750698693870,-687.53,0.00024363,2]
[367201395,1750698693880,-577.42,0.00024363,2]
[367201396,1750698693890,-994.99,0.00024363,2]
[367201397,1750698693900,-1465.11,0.00024363,2]
[367201398,1750698693910,-490.0,0.00024363,2]
[367201399,1750698693919,-659.98,0.00024363,2]
[367201400,1750698693929,-1163.27,0.00024363,2]
[367201401,1750698693938,-490.0,0.00024363,2]
[367201402,1750698693949,-1296.64,0.00024363,2]
[367201403,1750698693958,-805.19,0.00024363,2]
[367201404,1750698693968,-490.0,0.00024363,2]
[367201405,1750698693978,-798.6,0.00024363,2]
[367201406,1750698693988,-961.74,0.00024363,2]
[367201407,1750698693998,-490.0,0.00024363,2]
[367201408,1750698694008,-490.0,0.00024363,2]
[367201409,1750698694017,-586.53,0.00024363,2]
[367201410,1750698694027,-711.71,0.00024363,2]
[367201411,1750698694037,-490.0,0.00024363,2]
[367201412,1750698694046,-490.0,0.00024363,2]
[367201413,1750698694055,-1316.01,0.00024363,2]
[367201414,1750698694065,-2071.77,0.00024363,2]
[367201415,1750698694074,-512.04769063,0.00024363,2]
[367201416,1750698694085,-707.92,0.00024363,2]
[367201417,1750698694098,-490.0,0.00024363,2]
[367201418,1750698694107,-988.12,0.00024363,2]
[367201419,1750698694116,-1316.04,0.00024363,2]
[367201420,1750698694125,-490.0,0.00024363,2]
[367201421,1750698694135,-490.0,0.00024363,2]
[367201422,1750698694145,-1649.14,0.00024363,2]
[367201423,1750698694155,-490.0,0.00024363,2]
[367201424,1750698694165,-490.0,0.00024363,2]
[367201425,1750698694174,-1451.84,0.00024363,2]
[367201426,1750698694183,-2574.3,0.00024363,2]
[367201427,1750698694194,-677.43,0.00024363,2]
[367201428,1750698694204,-761.66,0.00024363,2]
[367201429,1750698694214,-671.45,0.00024363,2]
[367201430,1750698694224,-1201.92,0.00024363,2]
[367201431,1750698694234,-490.0,0.00024363,2]
[367201432,1750698694243,-1302.67,0.00024363,2]
[367201433,1750698694252,-490.0,0.00024363,2]
[367201434,1750698694262,-497.36196264,0.00024363,2]
[367201435,1750698694271,-490.0,0.00024363,2]
[367201436,1750698694281,-1463.6,0.00024363,2]
[367201437,1750698694293,-1384.87,0.00024363,2]
[367201438,1750698694303,-1565.89,0.00024363,2]
[367201439,1750698694312,-740.56,0.00024363,2]
[367201440,1750698694322,-581.5,0.00024363,2]
[367201441,1750698694331,-1274.36,0.00024363,2]
[367201442,1750698694341,-466.86887206,0.00024363,2]
[367201443,1750698694353,-1136.75,0.00024363,2]
[367201444,1750698694363,-3207.81,0.00024363,2]
[367201445,1750698694373,-490.0,0.00024363,2]
[367201446,1750698694382,-508.28,0.00024363,2]
[367201447,1750698694392,-490.0,0.00024363,2]
[367201448,1750698694402,-645.34,0.00024363,2]
[367201449,1750698694412,-1082.91,0.00024363,2]
[367201450,1750698694422,-570.24,0.00024363,2]
[367201451,1750698694432,-3216.41,0.00024363,2]
[367201452,1750698694441,-1198.83,0.00024363,2]
[367201453,1750698694451,-777.62,0.00024363,2]
[367201454,1750698694461,-3260.51,0.00024363,2]
[367201455,1750698694470,-1064.93,0.00024363,2]
[367201456,1750698694479,-2313.09,0.00024363,2]
[367201457,1750698694489,-642.42,0.00024363,2]
[367201458,1750698694498,-690.62,0.00024363,2]
[367201459,1750698694508,-490.0,0.00024363,2]
[367201460,1750698694517,-490.0,0.00024363,2]
[367201461,1750698694526,-1610.22,0.00024363,2]
[367201462,1750698694536,-3410.48,0.00024363,2]
[367201463,1750698694545,-465.35890563,0.00024363,2]
[367201464,1750698694554,-490.0,0.00024363,2]
[367201465,1750698694564,-1189.88,0.00024363,2]
[367201466,1750698694573,-503.76,0.00024363,2]
[367201467,1750698694583,-1272.73,0.00024363,2]
[367201468,1750698694592,-1305.05,0.00024363,2]
[367201469,1750698694603,-1292.27,0.00024363,2]
[367201470,1750698694613,-490.0,0.00024363,2]
[367201471,1750698694623,-5009.26,0.00024363,2]
[367201472,1750698694633,-802.99,0.00024363,2]
[367201473,1750698694642,-1417.36,0.00024363,2]
[367201474,1750698694652,-534.32,0.00024363,2]
[367201475,1750698694661,-1871.08,0.00024363,2]
[367201476,1750698694671,-490.0,0.00024363,2]
[367201477,1750698694681,-490.0,0.00024363,2]
[367201478,1750698694691,-1102.28,0.00024363,2]
[367201479,1750698694700,-978.05,0.00024363,2]
[367201480,1750698694710,-1290.08,0.00024363,2]
[367201481,1750698694719,-490.0,0.00024363,2]
[367201482,1750698694729,-757.53,0.00024363,2]
[367201483,1750698694739,-490.0,0.00024363,2]
[367201484,1750698694748,-490.0,0.00024363,2]
[367201485,1750698694758,-6273.63,0.00024363,2]
[367201486,1750698694767,-490.0,0.00024363,2]
[367201487,1750698694776,-2190.49,0.00024363,2]
[367201488,1750698694786,-693.85,0.00024363,2]
[367201489,1750698694795,-969.95,0.00024363,2]
[367201490,1750698694806,-844.27,0.00024363,2]
[367201491,1750698694816,-490.0,0.00024363,2]
[367201492,1750698694826,-1768.01,0.00024363,2]
[367201493,1750698694835,-490.0,0.00024363,2]
[367201494,1750698694844,-1033.79,0.00024363,2]
[367201495,1750698694858,-490.0,0.00024363,2]
[367201496,1750698694867,-2829.12,0.00024363,2]
[367201497,1750698694877,-1421.12,0.00024363,2]
[367201498,1750698694886,-3039.87,0.00024363,2]
[367201499,1750698694895,-490.0,0.00024363,2]
[367201500,1750698694904,-615.69,0.00024364,2]
[367201501,1750698694913,-490.0,0.00024364,2]
[367201502,1750698694922,-490.0,0.00024364,2]
[367201503,1750698694931,-799.05,0.00024364,2]
[367201504,1750698694940,-490.0,0.00024364,2]
[367201505,1750698694949,-649.48,0.00024364,2]
[367201506,1750698694959,-490.0,0.00024364,2]
[367201507,1750698694968,-747.22,0.00024364,2]
[367201508,1750698694978,-582.61,0.00024364,2]
[367201509,1750698694987,-582.61,0.00024364,2]
[367201510,1750698694996,-571.21,0.00024364,2]
[367201511,1750698695006,-490.0,0.00024364,2]
[367201512,1750698695015,-1515.67,0.00024364,2]
[367201513,1750698695024,-1565.82,0.00024364,2]
[367201514,1750698695034,-2422.44,0.00024364,2]
[367201515,1750698695042,-1311.67,0.00024364,2]
[367201516,1750698695051,-1787.29,0.00024364,2]
[367201517,1750698695061,-490.0,0.00024364,2]
[367201518,1750698695071,-2072.67,0.00024364,2]
[367201519,1750698695080,-490.0,0.00024364,2]
[367201520,1750698695094,-821.3,0.00024364,2]
[367201521,1750698695106,-1673.72,0.00024364,2]
[367201522,1750698695115,-2237.1,0.00024364,2]
[367201523,1750698695125,-1610.12,0.00024364,2]
[367201524,1750698695137,-1083.0,0.00024364,2]
[367201525,1750698695146,-1106.33,0.00024364,2]
[367201526,1750698695155,-490.0,0.00024364,2]
[367201527,1750698695165,-490.0,0.00024364,2]
[367201528,1750698695174,-490.0,0.00024364,2]
[367201529,1750698695184,-2050.62,0.00024364,2]
[367201530,1750698695193,-1208.82,0.00024364,2]
[367201531,1750698695202,-498.0,0.00024364,2]
[367201532,1750698695211,-1726.23,0.00024364,2]
[367201533,1750698695221,-719.16,0.00024364,2]
[367201534,1750698695230,-490.0,0.00024364,2]
[367201535,1750698695239,-1608.26,0.00024364,2]
[367201536,1750698695248,-1628.29,0.00024364,2]
[367201537,1750698695257,-1088.21,0.00024364,2]
[367201538,1750698695268,-490.0,0.00024364,2]
[367201539,1750698695277,-1428.05,0.00024364,2]
[367201540,1750698695286,-548.65,0.00024364,2]
[367201541,1750698695295,-1785.44,0.00024364,2]
[367201542,1750698695305,-1037.72,0.00024364,2]
[367201543,1750698695314,-490.0,0.00024364,2]
[367201544,1750698695323,-490.0,0.00024364,2]
[367201545,1750698695333,-938.56,0.00024364,2]
[367201546,1750698695342,-490.0,0.00024364,2]
[367201547,1750698695356,-490.0,0.00024364,2]
[367201548,1750698695365,-490.0,0.00024364,2]
[367201549,1750698695375,-1599.2,0.00024364,2]
[367201550,1750698695384,-2233.74,0.00024364,2]
[367201551,1750698695394,-779.66,0.00024364,2]
[367201552,1750698695403,-2071.71,0.00024364,2]
[367201553,1750698695412,-2448.89,0.00024364,2]
[367201554,1750698695421,-1609.83,0.00024364,2]
[367201555,1750698695431,-771.85,0.00024364,2]
[367201556,1750698695440,-17894.27,0.00024364,2]
[367201557,1750698695449,-2144.67,0.00024364,2]
[367201558,1750698695458,-1031.7,0.00024364,2]
[367201559,1750698695467,-1643.47,0.00024364,2]
[367201560,1750698695476,-1164.0,0.00024364,2]
[367201561,1750698695486,-3265.53,0.00024364,2]
[367201562,1750698695495,-1649.42,0.00024364,2]
[367201563,1750698695504,-2939.17,0.00024364,2]
[367201564,1750698695513,-6326.13,0.00024364,2]
[367201565,1750698695522,-2564.45,0.00024364,2]
[367201566,1750698695531,-2032.0,0.00024364,2]
[367201567,1750698695541,-7426.18,0.00024364,2]
[367201568,1750698695550,-1353.02,0.00024364,2]
[367201569,1750698695559,-6426.78,0.00024364,2]
[367201570,1750698695569,-732.12,0.00024364,2]
[367201571,1750698695578,-1188.46,0.00024364,2]
[367201572,1750698695587,-3016.63,0.00024364,2]
[367201573,1750698695600,-671.94,0.00024364,2]
[367201574,1750698695609,-1261.71,0.00024364,2]
[367201575,1750698695620,-8384.06,0.00024364,2]
[367201576,1750698695630,-2734.07,0.00024364,2]
[367201577,1750698695639,-1338.84,0.00024364,2]
[367201578,1750698695649,-503.82,0.00024364,2]
[367201579,1750698695659,-785.94,0.00024364,2]
[367201580,1750698695669,-2908.2,0.00024364,2]
[367201581,1750698695679,-1254.38,0.00024364,2]
[367201582,1750698695689,-792.37,0.00024364,2]
[367201583,1750698695699,-3998.48,0.00024364,2]
[367201584,1750698695708,-1561.52,0.00024364,2]
[367201585,1750698695718,-6443.202937,0.00024364,2]
[367201586,1750698695728,-1450.98,0.00024364,2]
[367201587,1750698695739,-151.219152,0.00024364,2]
[367201588,1750698695748,-1020.65,0.00024364,2]
[367201589,1750698695758,-1226.48,0.00024364,2]
[367201590,1750698695767,-927.5,0.00024364,2]
[367201591,1750698695776,-490.0,0.00024364,2]
[367201592,1750698695786,-888.64,0.00024364,2]
[367201593,1750698695796,-1568.0,0.00024364,2]
[367201594,1750698695805,-573.95,0.00024364,2]
[367201595,1750698695814,-1236.22,0.00024364,2]
[367201596,1750698695824,-2086.57,0.00024364,2]
[367201597,1750698695833,-11128.95,0.00024364,2]
[367201598,1750698695843,-3474.170252,0.00024364,2]
[367201599,1750698695855,-578.12,0.00024364,2]
[367201600,1750698695865,-1094.52,0.00024364,2]
[367201601,1750698695874,-1429.33,0.00024364,2]
[367201602,1750698695884,-2550.63,0.00024364,2]
[367201603,1750698695893,-1705.63,0.00024364,2]
[367201604,1750698695903,-1403.27,0.00024364,2]
[367201605,1750698695913,-1000.0,0.00024364,2]
[367201606,1750698695922,-800.49,0.00024364,2]
[367201607,1750698695931,-2306.86,0.00024364,2]
[367201608,1750698695941,-3458.41,0.00024364,2]
[367201609,1750698695950,-573.21,0.00024364,2]
[367201610,1750698695959,-1743.2,0.00024364,2]
[367201611,1750698695969,-14104.896354,0.00024364,2]
[367201612,1750698695979,-10144.14,0.00024364,2]
[367201613,1750698695988,-490.0,0.00024364,2]
[367201614,1750698695998,-886.2,0.00024364,2]
[367201615,1750698696007,-2114.89,0.00024364,2]
[367201616,1750698696017,-4042.92,0.00024364,2]
[367201617,1750698696026,-2394.25,0.00024364,2]
[367201618,1750698696036,-731.69,0.00024364,2]
[367201619,1750698696045,-1526.25,0.00024364,2]
[367201620,1750698696054,-1361.84,0.00024364,2]
[367201621,1750698696064,-2763.6,0.00024364,2]
[367201622,1750698696073,-493.15,0.00024364,2]
[367201623,1750698696083,-5649.05,0.00024364,2]
[367201624,1750698696092,-841.69,0.00024364,2]
[367201625,1750698696106,-1021.6,0.00024364,2]
[367201626,1750698696116,-1566.44,0.00024364,2]
[367201627,1750698696126,-1307.2,0.00024364,2]
[367201628,1750698696135,-2220.37,0.00024364,2]
[367201629,1750698696145,-1694.76,0.00024364,2]
[367201630,1750698696154,-1333.28,0.00024364,2]
[367201631,1750698696163,-4728.59,0.00024364,2]
[367201632,1750698696172,-6206.01,0.00024364,2]
[367201633,1750698696182,-830.47,0.00024364,2]
[367201634,1750698696192,-1672.77,0.00024364,2]
[367201635,1750698696201,-1243.22,0.00024364,2]
[367201636,1750698696211,-585.45,0.00024364,2]
[367201637,1750698696221,-15974.58,0.00024364,2]
[367201638,1750698696231,-1042.64,0.00024364,2]
[367201639,1750698696240,-1213.26,0.00024364,2]
[367201640,1750698696250,-1057.02,0.00024364,2]
[367201641,1750698696260,-8982.57,0.00024364,2]
[367201642,1750698696270,-3184.98,0.00024364,2]
[367201643,1750698696280,-584.73,0.00024364,2]
[367201644,1750698696289,-955.19,0.00024364,2]
[367201645,1750698696299,-1281.44,0.00024364,2]
[367201646,1750698696309,-1451.39,0.00024364,2]
[367201647,1750698696319,-1334.22,0.00024364,2]
[367201648,1750698696330,-3646.54,0.00024364,2]
[367201649,1750698696340,-2077.8,0.00024364,2]
[367201650,1750698696351,-1126.53,0.00024364,2]
[367201651,1750698696362,-1062.91,0.00024364,2]
[367201652,1750698696372,-1754.15,0.00024364,2]
[367201653,1750698696381,-783.6,0.00024364,2]
[367201654,1750698696391,-1637.16,0.00024364,2]
[367201655,1750698696401,-1986.85,0.00024364,2]
[367201656,1750698696411,-30257.07,0.00024364,2]
[367201657,1750698696421,-4431.79,0.00024364,2]
[367201658,1750698696432,-1908.75,0.00024364,2]
[367201659,1750698696441,-1251.43,0.00024364,2]
[367201660,1750698696451,-1043.13,0.00024364,2]
[367201661,1750698696461,-1449.88,0.00024364,2]
[367201662,1750698696471,-3408.85,0.00024364,2]
[367201663,1750698696481,-1487.37,0.00024364,2]
[367201664,1750698696491,-1477.39,0.00024364,2]
[367201665,1750698696501,-1309.69,0.00024364,2]
[367201666,1750698696510,-1399.23,0.00024364,2]
[367201667,1750698696520,-4978.94,0.00024364,2]
[367201668,1750698696530,-1851.33,0.00024364,2]
[367201669,1750698696540,-1549.84,0.00024364,2]
[367201670,1750698696549,-1569.7,0.00024364,2]
[367201671,1750698696559,-4930.1,0.00024364,2]
[367201672,1750698696569,-2819.42,0.00024364,2]
[367201673,1750698696579,-3120.58,0.00024364,2]
[367201674,1750698696589,-1734.46,0.00024364,2]
[367201675,1750698696601,-1884.11,0.00024364,2]
[367201676,1750698696611,-4270.66,0.00024364,2]
[367201677,1750698696621,-747.75,0.00024364,2]
[367201678,1750698696631,-2881.99,0.00024364,2]
[367201679,1750698696641,-5897.6,0.00024364,2]
[367201680,1750698696652,-490.0,0.00024364,2]
[367201681,1750698696662,-1573.74,0.00024364,2]
[367201682,1750698696672,-1383.69,0.00024364,2]
[367201683,1750698696683,-885.33,0.00024364,2]
[367201684,1750698696694,-1501.78,0.00024364,2]
[367201685,1750698696703,-698.8,0.00024365,2]
[367201686,1750698696713,-669.68,0.00024365,2]
[367201687,1750698696724,-490.0,0.00024365,2]
[367201688,1750698696733,-929.07,0.00024365,2]
[367201689,1750698696743,-490.0,0.00024365,2]
[367201690,1750698696752,-490.0,0.00024365,2]
[367201691,1750698696762,-593.8097913,0.00024365,2]
[367201692,1750698696772,-1110.49,0.00024365,2]
[367201693,1750698696782,-791.44,0.00024365,2]
[367201694,1750698696792,-490.0,0.00024365,2]
[367201695,1750698696802,-1147.96,0.00024365,2]
[367201696,1750698696812,-490.0,0.00024365,2]
[367201697,1750698696822,-593.55174394,0.00024365,2]
[367201698,1750698696832,-490.0,0.00024365,2]
[367201699,1750698696842,-490.0,0.00024365,2]
[367201700,1750698696853,-490.0,0.00024365,2]
[367201701,1750698696863,-920.38,0.00024365,2]
[367201702,1750698696873,-564.09,0.00024365,2]
[367201703,1750698696883,-773.07,0.00024365,2]
[367201704,1750698696893,-772.88,0.00024365,2]
[367201705,1750698696903,-974.05,0.00024365,2]
[367201706,1750698696914,-490.0,0.00024365,2]
[367201707,1750698696924,-490.0,0.00024365,2]
[367201708,1750698696934,-490.0,0.00024365,2]
[367201709,1750698696944,-490.0,0.00024365,2]
[367201710,1750698696954,-563.39,0.00024365,2]
[367201711,1750698696964,-490.0,0.00024365,2]
[367201712,1750698696974,-490.0,0.00024365,2]
[367201713,1750698696984,-490.0,0.00024365,2]
[367201714,1750698696994,-490.0,0.00024365,2]
[367201715,1750698697003,-523.29,0.00024365,2]
[367201716,1750698697013,-490.0,0.00024365,2]
[367201717,1750698697023,-506.50270823,0.00024365,2]
[367201718,1750698697033,-1284.85,0.00024365,2]
[367201719,1750698697042,-740.67,0.00024365,2]
[367201720,1750698697052,-596.54,0.00024365,2]
[367201721,1750698697062,-490.0,0.00024365,2]
[367201722,1750698697072,-679.03,0.00024365,2]
[367201723,1750698697082,-795.0,0.00024365,2]
[367201724,1750698697092,-565.51,0.00024365,2]
[367201725,1750698697107,-490.0,0.00024365,2]
[367201726,1750698697117,-924.56,0.00024365,2]
[367201727,1750698697127,-1608.33,0.00024365,2]
[367201728,1750698697137,-540.42,0.00024365,2]
[367201729,1750698697147,-631.4,0.00024365,2]
[367201730,1750698697156,-1315.78,0.00024365,2]
[367201731,1750698697166,-940.16,0.00024365,2]
[367201732,1750698697177,-836.48,0.00024365,2]
[367201733,1750698697188,-676.41,0.00024365,2]
[367201734,1750698697197,-490.0,0.00024365,2]
[367201735,1750698697207,-490.0,0.00024365,2]
[367201736,1750698697217,-227.81858282,0.00024365,2]
[367201737,1750698697227,-1995.8,0.00024365,2]
[367201738,1750698697236,-201.89567906,0.00024365,2]
[367201739,1750698697246,-955.43,0.00024365,2]
[367201740,1750698697257,-946.21,0.00024365,2]
[367201741,1750698697267,-490.0,0.00024365,2]
[367201742,1750698697277,-295.74768614,0.00024365,2]
[367201743,1750698697287,-1199.8,0.00024365,2]
[367201744,1750698697297,-1746.69,0.00024365,2]
[367201745,1750698697307,-1597.4,0.00024365,2]
[367201746,1750698697317,-721.98,0.00024365,2]
[367201747,1750698697327,-490.0,0.00024365,2]
[367201748,1750698697336,-1078.2,0.00024365,2]
[367201749,1750698697346,-1245.27,0.00024365,2]
[367201750,1750698697358,-490.0,0.00024365,2]
[367201751,1750698697367,-516.18,0.00024365,2]
[367201752,1750698697377,-490.0,0.00024365,2]
[367201753,1750698697387,-361.19345972,0.00024365,2]
[367201754,1750698697397,-990.07,0.00024365,2]
[367201755,1750698697406,-549.99,0.00024365,2]
[367201756,1750698697416,-752.35,0.00024365,2]
[367201757,1750698697426,-490.0,0.00024365,2]
[367201758,1750698697435,-490.0,0.00024365,2]
[367201759,1750698697445,-1453.03,0.00024365,2]
[367201760,1750698697455,-785.71,0.00024365,2]
[367201761,1750698697464,-742.29,0.00024365,2]
[367201762,1750698697474,-1602.78,0.00024365,2]
[367201763,1750698697484,-856.74,0.00024365,2]
[367201764,1750698697494,-1829.46,0.00024365,2]
[367201765,1750698697505,-490.0,0.00024365,2]
[367201766,1750698697515,-962.15,0.00024365,2]
[367201767,1750698697526,-847.97,0.00024365,2]
[367201768,1750698697536,-1010.43,0.00024365,2]